fUSD/lending_fUSD_20241129
["ID","MTS","AMOUNT","RATE_DAILY","PERIOD"]
[343704574,1732890638378,-166.07205921,8.621e-05,2]
[343704575,1732890638388,-18737.72794079,9.977e-05,2]
[343704576,1732890638408,-184406.48554472,9.977e-05,2]
[343704577,1732890638417,-367.00892642,9.977e-05,2]
[343704578,1732890638426,-267.84623981,9.978e-05,2]
[343704579,1732890638439,-367.00892642,9.981e-05,2]
[343704580,1732890638448,-322.36729556,9.983e-05,2]
[343704581,1732890638457,-322.36729556,9.983e-05,2]
[343704582,1732890638467,-267.84623981,9.983e-05,2]
[343704583,1732890638476,-322.36729556,9.984e-05,2]
[343704584,1732890638485,-266009.36242675,9.986e-05,2]
[343704585,1732890638495,-266009.36242675,9.987e-05,2]
[343704586,1732890638504,-267.84623981,9.989e-05,2]
[343704587,1732890638514,-322.36729556,9.989e-05,2]
[343704588,1732890638523,-367.00892642,9.99e-05,2]
[343704589,1732890638533,-633.0,9.99e-05,2]
[343704590,1732890638543,-267.84623981,9.99e-05,2]
[343704591,1732890638552,-267.84623981,9.99e-05,2]
[343704592,1732890638561,-266009.36242675,9.991e-05,2]
[343704593,1732890638572,-367.00892642,9.992e-05,2]
[343704594,1732890638581,-266009.36242675,9.996e-05,2]
[343704595,1732890638591,-322.36729556,9.996e-05,2]
[343704596,1732890638601,-155.83154683,9.999e-05,2]
[343704597,1732890638610,-747.74,9.999e-05,2]
[343704598,1732890638619,-532.23,9.999e-05,2]
[343704599,1732890638629,-11076.77502763,0.0001,2]
[343704600,1732890638639,-500793.80126381,0.0001,2]
[343704601,1732890638648,-14328445.89860299,0.0001,2]
[343704602,1732890638658,-203.0,0.0001,2]
[343704603,1732890638668,-203.0,0.0001,2]
[343704604,1732890638677,-203.0,0.0001,2]
[343704605,1732890638688,-203.0,0.0001,2]
[343704606,1732890638698,-203.0,0.0001,2]
[343704607,1732890638707,-203.0,0.0001,2]
[343704608,1732890638717,-203.0,0.0001,2]
[343704609,1732890638726,-203.0,0.0001,2]
[343704610,1732890638736,-203.0,0.0001,2]
[343704611,1732890638746,-594.0,0.0001,2]
[343704612,1732890638755,-594.0,0.0001,2]
[343704613,1732890638765,-594.0,0.0001,2]
[343704614,1732890638774,-594.0,0.0001,2]
[343704615,1732890638784,-594.0,0.0001,2]
[343704616,1732890638793,-594.0,0.0001,2]
[343704617,1732890638803,-594.0,0.0001,2]
[343704618,1732890638812,-594.0,0.0001,2]
[343704619,1732890638822,-594.0,0.0001,2]
[343704620,1732890638832,-594.0,0.0001,2]
[343704621,1732890638841,-594.0,0.0001,2]
[343704622,1732890638851,-594.0,0.0001,2]
[343704623,1732890638860,-594.0,0.0001,2]
[343704624,1732890638870,-594.0,0.0001,2]
[343704625,1732890638883,-594.0,0.0001,2]
[343704626,1732890638892,-594.0,0.0001,2]
[343704627,1732890638902,-594.0,0.0001,2]
[343704628,1732890638913,-594.0,0.0001,2]
[343704629,1732890638923,-594.0,0.0001,2]
[343704630,1732890638937,-594.0,0.0001,2]
[343704631,1732890638951,-472.17165048,0.0001,2]
[343704632,1732890638962,-5000.0294991,0.0001,2]
[343704633,1732890638973,-150.0,0.0001,2]
[343704634,1732890638983,-150.0,0.0001,2]
[343704635,1732890638994,-18851639.79694828,0.0001,2]
[343704636,1732890639004,-227713.79785017,0.0001,2]
[343704637,1732890639014,-6455.3238293,0.0001,2]
[343704638,1732890639027,-38999.999999,0.0001,2]
[343704639,1732890639040,-22597.95492802,0.0001,2]
[343704640,1732890639052,-31744516.27811424,0.0001,2]
[343704646,1732890640363,-276.95989955,0.0001,2]
[343704647,1732890640376,-3607.56191736,0.0001,2]
[343704650,1732890643231,-4030.33616191,0.0001,2]
[343704651,1732890643243,-2792.45466537,0.0001,2]
[343704652,1732890643255,-2888.2694937,0.0001,2]
[343704653,1732890643388,-92192.32402961,0.0001,2]
[343704654,1732890643400,-2440.77700651,0.0001,2]
[343704655,1732890643474,-155.83154682,9.999e-05,2]
[343704656,1732890643483,-888.15585318,0.0001,2]
[343704657,1732890643494,-113268.00644463,0.0001,2]
[343704658,1732890643520,-22491.7547035,0.0001,2]
[343704683,1732890646121,-1997.97,0.0001,2]
[343704684,1732890646132,-516.78,0.0001,2]
[343704685,1732890647648,-65610.17649869,0.0001,2]
[343704686,1732890647659,-290.4689,0.0001,2]
[343704689,1732890706370,1070.65281056,0.00024,60]
[343704691,1732890961240,6000.0,0.00018666,31]
[343704692,1732890986110,6000.0,0.00019,30]
[343704693,1732891203983,157.02,0.00016658,30]
[343704694,1732891248939,-900.0,8.219e-05,2]
[343704695,1732891408937,-204.70655556,8.153e-05,2]
[343704696,1732891409535,-195.06,8.153e-05,2]
[343704697,1732891416946,200.0,0.00024943,120]
[343704700,1732891563448,-100.23344444,8.153e-05,2]
[343704701,1732891563471,-31.48,8.219e-05,2]
[343704702,1732891563493,-250.0,8.549e-05,2]
[343704703,1732891563514,-720.8,8.572e-05,2]
[343704704,1732891563538,-1606.38,8.596e-05,2]
[343704705,1732891563561,-200.95214991,8.722e-05,2]
[343704706,1732891563585,-3037.65,8.722e-05,2]
[343704707,1732891563607,-250.0,8.794e-05,2]
[343704708,1732891563629,-250.0,8.796e-05,2]
[343704709,1732891563651,-968.3,8.796e-05,2]
[343704710,1732891563672,-605.2541,8.885e-05,2]
[343704711,1732891563695,-208.79,8.887e-05,2]
[343704712,1732891563718,-300.0,8.919e-05,2]
[343704713,1732891563739,-1135.08,8.92e-05,2]
[343704714,1732891563760,-173.68,8.984e-05,2]
[343704715,1732891563785,-1049.0,8.985e-05,2]
[343704716,1732891563807,-1000.0,8.994e-05,2]
[343704717,1732891594175,-16092.28,9.07e-05,2]
[343704718,1732891594197,-200.0,9.124e-05,2]
[343704719,1732891594220,-2049.1,9.145e-05,2]
[343704720,1732891594246,-240.52,9.195e-05,2]
[343704721,1732891594269,-172.83,9.205e-05,2]
[343704722,1732891594291,-3291.08,9.211e-05,2]
[343704723,1732891594316,-2008.42,9.246e-05,2]
[343704724,1732891594340,-160.55,9.589e-05,2]
[343704725,1732891594364,-2517.0,9.703e-05,2]
[343704726,1732891594387,-420.0,9.811e-05,2]
[343704727,1732891594410,-150.0,9.863e-05,2]
[343704728,1732891594433,-1600.0,9.863e-05,2]
[343704729,1732891594456,-27541.431,9.899e-05,2]
[343704730,1732891594479,-4449.057,9.9e-05,2]
[343704731,1732891594501,-707.67,9.9e-05,2]
[343704732,1732891594523,-1000.0,9.9e-05,2]
[343704733,1732891594547,-1913.195,9.9e-05,2]
[343704734,1732891594573,-2500.0,9.9e-05,2]
[343704735,1732891594594,-1148.70309701,9.9e-05,2]
[343704736,1732891606504,-500.0,9.973e-05,2]
[343704737,1732891606527,-400.0,9.973e-05,2]
[343704738,1732891606550,-500.0,9.973e-05,2]
[343704739,1732891606576,-500.0,9.973e-05,2]
[343704740,1732891606599,-274.50842793,9.975e-05,2]
[343704741,1732891606621,-274.50842793,9.977e-05,2]
[343704742,1732891606644,-274.50842793,9.978e-05,2]
[343704743,1732891606667,-247.10892447,9.98e-05,2]
[343704744,1732891606687,-25674.2453566,9.98e-05,3]
[343704745,1732891606710,-274.50842793,9.987e-05,2]
[343704746,1732891606730,-5000.0,9.988e-05,3]
[343704747,1732891606752,-274.50842793,9.99e-05,2]
[343704748,1732891606772,-1686.4290504,9.995e-05,2]
[343704749,1732891606794,-1176.5837337,9.995e-05,2]
[343704750,1732891606820,-3689.3911054,9.995e-05,2]
[343704751,1732891606843,-4125.5402648,9.995e-05,2]
[343704752,1732891606866,-274.50842793,9.997e-05,2]
[343704753,1732891606888,-208.79,9.998e-05,2]
[343704754,1732891606908,-299.58846576,9.999e-05,2]
[343704755,1732891606930,-1329.025,9.999e-05,2]
[343704756,1732891606951,-165.076,9.999e-05,2]
[343704757,1732891606972,-532.23,9.999e-05,2]
[343704758,1732891606994,-12368.26942855,0.0001,2]
[343704759,1732891607014,-11350.08000615,0.0001,2]
[343704760,1732891607038,-727944.44194722,0.0001,2]
[343704761,1732891607066,-95733.71435801,0.0001,2]
[343704953,1732891832493,-952.28,8.219e-05,2]
[343704954,1732891832503,-205.93794422,9.07e-05,2]
[343704955,1732891832512,-1000.0,9.641e-05,2]
[343704956,1732891832521,-150.0,9.772e-05,2]
[343704957,1732891832531,-1829.0,9.863e-05,2]
[343704958,1732891832543,-300.0,9.899e-05,2]
[343704959,1732891832553,-1918.2406,9.9e-05,2]
[343704960,1732891832562,-2500.0,9.9e-05,2]
[343704961,1732891832571,-163.46011792,9.929e-05,2]
[343704962,1732891832581,-150.0,9.945e-05,2]
[343704963,1732891832590,-150.0,9.997e-05,2]
[343704964,1732891832599,-299.58846575,9.999e-05,2]
[343704965,1732891832609,-5006.60809411,0.0001,2]
[343704966,1732891832620,-17224.51110464,0.0001,2]
[343704967,1732891832664,-494.30163018,0.0001,2]
[343704968,1732891832692,-587.1212102,0.0001,2]
[343704969,1732891832704,-527.1917,0.0001,2]
[343704970,1732891833332,-1255.09414537,0.0001,2]
[343704984,1732891833512,-1024.77478422,0.0001,2]
[343704992,1732891834639,157.02,0.00016658,30]
[343704997,1732891838317,-1793.787078,9.9e-05,2]
[343704998,1732891838328,-706.212922,9.9e-05,2]
[343704999,1732891838337,-577.987078,0.0001,2]
[343705000,1732891838465,-27038.85765913,0.0001,2]
[343705001,1732891838477,-5752.10648931,0.0001,2]
[343705002,1732891838488,-18534.90445583,0.0001,2]
[343705003,1732891838499,-284.0,0.0001,2]
[343705004,1732891838510,-540.17576333,0.0001,2]
[343705005,1732891838521,-4971.1460306,0.0001,2]
[343705006,1732891838558,-280153.44082869,0.0001,2]
[343705007,1732891838568,-5675.04000308,0.0001,2]
[343705008,1732891838577,-66413870.27802243,0.0001,2]
[343705009,1732891838589,-944.48846306,0.0001,2]
[343705010,1732891838622,-3286.57965555,0.0001,2]
[343705011,1732891838633,-104509.43544544,0.0001,2]
[343705012,1732891838644,-463.4202856,0.0001,2]
[343705013,1732891838655,-781.256,0.0001,2]
[343705014,1732891838747,-255.89999987,0.0001,2]
[343705032,1732891840341,-481.57731625,0.0001,2]
[343705033,1732891840353,-1965.9811128,0.0001,2]
[343705034,1732891840364,-856.88276594,0.0001,2]
[343705035,1732891840400,-1728.77262585,0.0001,2]
[343705036,1732891840411,-1925.36,0.0001,2]
[343705037,1732891840422,-1124.81296994,0.0001,2]
[343705038,1732891840459,-322.08917367,0.0001,2]
[343705039,1732891840521,-754.85788205,0.0001,2]
[343705048,1732891843318,-597.59873789,0.0001,2]
[343705049,1732891843329,-2770.55786474,0.0001,2]
[343705050,1732891843340,-23897.6775,0.0001,2]
[343705051,1732891843352,-609.2605884,0.0001,2]
[343705052,1732891843363,-378186.8514102,0.0001,2]
[343705053,1732891843404,-3616.86,0.0001,2]
[343705054,1732891843415,-6285.92518146,0.0001,2]
[343705055,1732891843426,-443.25700348,0.0001,2]
[343705056,1732891843480,-1887.41586218,0.0001,2]
[343705057,1732891843648,-624.70206345,0.0001,2]
[343705059,1732891843721,-374.56468928,0.0001,2]
[343705060,1732891843733,-488.97,0.0001,2]
[343705062,1732891843759,-3039.73227461,0.0001,2]
[343705063,1732891843770,-2311.64104462,0.0001,2]
[343705064,1732891843781,-11924.14460876,0.0001,2]
[343705068,1732891846282,-1654.07342479,0.0001,2]
[343705069,1732891846293,-641.71538864,0.0001,2]
[343705070,1732891846307,-6385.02724612,0.0001,2]
[343705071,1732891846322,-301.04524444,0.0001,2]
[343705072,1732891846333,-42069.35403911,0.0001,2]
[343705073,1732891846345,-2385.09969657,0.0001,2]
[343705074,1732891846357,-596.715,0.0001,2]
[343705075,1732891846370,-1751.60000002,0.0001,2]
[343705076,1732891846382,-2396.74999925,0.0001,2]
[343705081,1732891847232,-1712.69668,0.0001,2]
[343705082,1732891847245,-9437.15,0.0001,2]
[343705083,1732891847268,-19577.67719999,0.0001,2]
[343705084,1732891847291,-3648.1964838,0.0001,2]
[343705085,1732891847593,-758.0385976,0.0001,2]
[343705086,1732891848147,-0.69700849,0.0001,2]
[343705087,1732891848159,-1693.91344724,0.0001,2]
[343705088,1732891851441,169.36004489,0.00012,10]
[343705089,1732891901351,3509.3,0.00025,120]
[343705094,1732892020244,200.0,0.00024748,120]
[343705110,1732892446082,150.0,0.0001,5]
[343705111,1732892482948,151.0,0.00025,120]
[343705112,1732892518115,186.176409,0.00025,120]
[343705113,1732892541477,151.0,0.00025,120]
[343705114,1732892613448,200.0,0.00024819,120]
[343705123,1732892763395,-500.0,0.00025438,120]
[343705124,1732892763427,-200.0,0.00025819,120]
[343705240,1732893031568,-813.29654652,8.219e-05,2]
[343705241,1732893031579,-150.52345348,8.219e-05,2]
[343705242,1732893031588,-10101.14066,8.667e-05,2]
[343705243,1732893031598,-3264.59,8.711e-05,2]
[343705244,1732893031607,-482.32234989,8.753e-05,2]
[343705245,1732893031617,-1038.71,8.797e-05,2]
[343705246,1732893031627,-250.0,8.893e-05,2]
[343705247,1732893031637,-1891.28,8.926e-05,2]
[343705248,1732893031646,-184.12,8.946e-05,2]
[343705249,1732893031656,-250.0,8.964e-05,2]
[343705250,1732893031665,-1000.0,8.975e-05,2]
[343705251,1732893031675,-150.0,9.031e-05,2]
[343705252,1732893031684,-20038.41,9.032e-05,2]
[343705253,1732893031693,-250.0,9.032e-05,2]
[343705254,1732893031705,-919.59,9.141e-05,2]
[343705255,1732893031717,-152.38,9.278e-05,2]
[343705256,1732893031726,-434.46,9.278e-05,2]
[343705257,1732893031736,-363.48,9.278e-05,2]
[343705258,1732893031747,-150.0,9.278e-05,2]
[343705259,1732893031759,-434.77,9.441e-05,2]
[343705260,1732893031768,-434.77,9.441e-05,2]
[343705261,1732893031777,-766.86,9.441e-05,2]
[343705263,1732893031787,-434.77,9.441e-05,2]
[343705264,1732893031797,-433.49,9.441e-05,2]
[343705265,1732893031806,-766.86,9.441e-05,2]
[343705266,1732893031815,-766.86,9.441e-05,2]
[343705267,1732893031826,-766.86,9.441e-05,2]
[343705268,1732893031836,-763.96,9.441e-05,2]
[343705269,1732893031845,-150.44,9.578e-05,2]
[343705270,1732893031855,-286.1911454,9.8e-05,2]
[343705271,1732893031864,-1600.0,9.863e-05,2]
[343705272,1732893031874,-2500.0,9.89e-05,2]
[343705273,1732893031884,-253.8955,9.9e-05,2]
[343705274,1732893031893,-1000.0,9.9e-05,2]
[343705275,1732893031903,-60873.8337,9.9e-05,2]
[343705276,1732893031912,-495.92,9.9e-05,2]
[343705277,1732893031922,-1184.918,9.9e-05,2]
[343705278,1732893031931,-501.45,9.9e-05,2]
[343705279,1732893031941,-494.88,9.9e-05,2]
[343705280,1732893031951,-494.03,9.9e-05,2]
[343705281,1732893031960,-33641.9198,9.9e-05,2]
[343705282,1732893031969,-8801.4365,9.9e-05,2]
[343705283,1732893031978,-500.0,9.92e-05,2]
[343705284,1732893031987,-255.0,9.934e-05,2]
[343705285,1732893031996,-5800.0,9.939e-05,2]
[343705286,1732893032008,-5800.0,9.948e-05,2]
[343705287,1732893032017,-5800.0,9.957e-05,2]
[343705288,1732893032026,-5800.0,9.965e-05,2]
[343705289,1732893032035,-500.0,9.973e-05,2]
[343705290,1732893032044,-500.0,9.973e-05,2]
[343705291,1732893032053,-500.0,9.973e-05,2]
[343705292,1732893032062,-500.0,9.973e-05,2]
[343705293,1732893032071,-582.77764112,9.973e-05,2]
[343705294,1732893032080,-1789.52766491,9.973e-05,2]
[343705295,1732893032090,-5800.0,9.973e-05,2]
[343705297,1732893032099,-1789.52766491,9.974e-05,2]
[343705299,1732893032108,-200.0,9.974e-05,2]
[343705301,1732893032118,-582.77764112,9.975e-05,2]
[343705303,1732893032127,-200.0,9.975e-05,2]
[343705305,1732893032136,-582.77764112,9.977e-05,2]
[343705308,1732893032145,-1789.52766491,9.977e-05,2]
[343705311,1732893032154,-200.0,9.978e-05,2]
[343705314,1732893032164,-200.0,9.979e-05,2]
[343705317,1732893032173,-200.0,9.98e-05,2]
[343705319,1732893032182,-200.0,9.981e-05,2]
[343705321,1732893032191,-1789.52766491,9.981e-05,2]
[343705323,1732893032201,-5800.0,9.982e-05,2]
[343705325,1732893032210,-200.0,9.983e-05,2]
[343705330,1732893032220,-1789.52766491,9.985e-05,2]
[343705331,1732893032375,-200.0,9.988e-05,2]
[343705332,1732893032384,-200.0,9.989e-05,2]
[343705333,1732893032394,-200.0,9.989e-05,2]
[343705334,1732893032403,-115289.20764331,9.99e-05,2]
[343705335,1732893032416,-93298.84485159,9.99e-05,2]
[343705336,1732893032442,-8662.17822359,9.99e-05,2]
[343705337,1732893032453,-32749.76928151,9.99e-05,2]
[343705338,1732893032462,-2496.9808932,9.99e-05,2]
[343705339,1732893032473,-1550.76703077,9.99e-05,2]
[343705340,1732893032515,-541.345,9.99e-05,2]
[343705341,1732893032527,-629.91464567,9.99e-05,2]
[343705342,1732893032552,-2171.06118597,9.99e-05,2]
[343705343,1732893032562,-284.81576403,9.99e-05,2]
[343705344,1732893032628,-1000.44670843,9.99e-05,2]
[343705345,1732893032639,-823.352684,9.99e-05,2]
[343705346,1732893032650,-2976.46709022,9.99e-05,2]
[343705350,1732893037693,-1000.0,8.743e-05,2]
[343705351,1732893037714,-1000.0,9.835e-05,2]
[343705352,1732893037934,-1513.14450765,9.99e-05,2]
[343705353,1732893037946,-4999.96,9.99e-05,2]
[343705354,1732893037959,-876.96424796,9.99e-05,2]
[343705355,1732893037969,-112.30045204,9.99e-05,2]
[343705356,1732893037980,-668.0189712,9.99e-05,2]
[343705357,1732893037991,-3472.15346,9.99e-05,2]
[343705358,1732893038003,-389.09091725,9.99e-05,2]
[343705360,1732893038032,-2577.8400004,9.99e-05,2]
[343705361,1732893038064,-170.66495472,9.99e-05,2]
[343705362,1732893038073,-7390.06875561,9.99e-05,2]
[343705363,1732893038082,-7390.06875561,9.99e-05,2]
[343705364,1732893038092,-7390.06875561,9.99e-05,2]
[343705365,1732893038102,-200.0,9.99e-05,2]
[343705366,1732893038113,-5800.0,9.991e-05,2]
[343705367,1732893038125,-200.0,9.991e-05,2]
[343705368,1732893038134,-200.0,9.992e-05,2]
[343705369,1732893038145,-7390.06875561,9.993e-05,2]
[343705370,1732893038154,-582.77764112,9.994e-05,2]
[343705371,1732893038163,-200.0,9.994e-05,2]
[343705372,1732893038172,-200.0,9.995e-05,2]
[343705373,1732893038182,-200.0,9.995e-05,2]
[343705374,1732893038191,-200.0,9.996e-05,2]
[343705375,1732893038200,-200.0,9.997e-05,2]
[343705376,1732893038209,-582.77764112,9.997e-05,2]
[343705377,1732893038218,-582.77764112,9.997e-05,2]
[343705378,1732893038227,-3148.483,9.998e-05,2]
[343705379,1732893038236,-1000.0,9.999e-05,2]
[343705380,1732893038245,-5800.0,9.999e-05,2]
[343705381,1732893038255,-1865.398,9.999e-05,2]
[343705382,1732893038269,-247.8248312,9.999e-05,2]
[343705383,1732893038278,-552.94,9.999e-05,2]
[343705384,1732893038287,-1789.52766491,9.999e-05,2]
[343705385,1732893038296,-1000.0,0.0001,2]
[343705387,1732893038305,-5675.04000308,0.0001,2]
[343705390,1732893038314,-389178.46920793,0.0001,2]
[343705393,1732893038324,-5039.03709758,0.0001,2]
[343705395,1732893038333,-5039.03709757,0.0001,2]
[343705396,1732893038342,-5039.03709757,0.0001,2]
[343705397,1732893038351,-5039.03709757,0.0001,2]
[343705398,1732893038360,-5039.03709757,0.0001,2]
[343705399,1732893038369,-5039.03709757,0.0001,2]
[343705400,1732893038378,-5039.03709757,0.0001,2]
[343705401,1732893038387,-5039.03709757,0.0001,2]
[343705402,1732893038396,-5039.03709757,0.0001,2]
[343705403,1732893038406,-62379486.48386784,0.0001,2]
[343705404,1732893038415,-213.35780354,0.0001,2]
[343705405,1732893038424,-204.0,0.0001,2]
[343705406,1732893038433,-204.0,0.0001,2]
[343705407,1732893038442,-204.0,0.0001,2]
[343705408,1732893038451,-204.0,0.0001,2]
[343705409,1732893038460,-204.0,0.0001,2]
[343705410,1732893038469,-204.0,0.0001,2]
[343705411,1732893038478,-204.0,0.0001,2]
[343705412,1732893038488,-204.0,0.0001,2]
[343705413,1732893038497,-204.0,0.0001,2]
[343705414,1732893038508,-1000.0,0.0001,2]
[343705415,1732893038518,-1000.0,0.0001,2]
[343705416,1732893038527,-1000.0,0.0001,2]
[343705417,1732893038536,-1000.0,0.0001,2]
[343705418,1732893038546,-1000.0,0.0001,2]
[343705419,1732893038556,-1000.0,0.0001,2]
[343705420,1732893038565,-1000.0,0.0001,2]
[343705421,1732893038574,-1000.0,0.0001,2]
[343705422,1732893038583,-1000.0,0.0001,2]
[343705423,1732893038593,-1000.0,0.0001,2]
[343705424,1732893038602,-1000.0,0.0001,2]
[343705425,1732893038611,-1000.0,0.0001,2]
[343705426,1732893038620,-1000.0,0.0001,2]
[343705427,1732893038629,-1000.0,0.0001,2]
[343705428,1732893038639,-1000.0,0.0001,2]
[343705429,1732893038648,-1000.0,0.0001,2]
[343705430,1732893038658,-1000.0,0.0001,2]
[343705431,1732893038667,-1000.0,0.0001,2]
[343705432,1732893038676,-1000.0,0.0001,2]
[343705433,1732893038686,-1000.0,0.0001,2]
[343705434,1732893038695,-1000.0,0.0001,2]
[343705435,1732893038705,-1000.0,0.0001,2]
[343705436,1732893038719,-1000.0,0.0001,2]
[343705437,1732893038729,-1000.0,0.0001,2]
[343705438,1732893038738,-1000.0,0.0001,2]
[343705439,1732893038747,-1000.0,0.0001,2]
[343705440,1732893038757,-1000.0,0.0001,2]
[343705441,1732893038767,-1000.0,0.0001,2]
[343705442,1732893038776,-1000.0,0.0001,2]
[343705443,1732893038786,-1000.0,0.0001,2]
[343705444,1732893038795,-1000.0,0.0001,2]
[343705445,1732893038805,-1000.0,0.0001,2]
[343705446,1732893038815,-1000.0,0.0001,2]
[343705447,1732893038824,-1000.0,0.0001,2]
[343705448,1732893038833,-1000.0,0.0001,2]
[343705449,1732893038842,-1000.0,0.0001,2]
[343705450,1732893038852,-1000.0,0.0001,2]
[343705451,1732893038861,-1000.0,0.0001,2]
[343705452,1732893038871,-1000.0,0.0001,2]
[343705453,1732893038880,-1000.0,0.0001,2]
[343705454,1732893038890,-1146.99028099,0.0001,2]
[343705455,1732893038900,-46547.0,0.0001,2]
[343705456,1732893038910,-210.0,0.0001,2]
[343705457,1732893038920,-210.0,0.0001,2]
[343705458,1732893038930,-207.0,0.0001,2]
[343705459,1732893038940,-1000.0,0.0001,2]
[343705460,1732893038949,-5627179.27680855,0.0001,2]
[343705461,1732893038962,-1990.418141,0.0001,2]
[343705462,1732893038973,-2098.7988,0.0001,2]
[343705463,1732893038985,-1833.245241,0.0001,2]
[343705464,1732893038996,-2106.05,0.0001,2]
[343705465,1732893039007,-1042.4,0.0001,2]
[343705466,1732893039018,-1753.42182,0.0001,2]
[343705467,1732893039076,-3929.24622368,0.0001,2]
[343705468,1732893039087,-497.3532736,0.0001,2]
[343705469,1732893039101,-521.78559,0.0001,2]
[343705470,1732893039112,-196271.4016972,0.0001,2]
[343705471,1732893039124,-880.53411316,0.0001,2]
[343705472,1732893039135,-4896.73822788,0.0001,2]
[343705473,1732893039147,-981.34,0.0001,2]
[343705478,1732893040017,-5306.11588146,0.0001,2]
[343705479,1732893040028,-30820.65439488,0.0001,2]
[343705480,1732893040039,-32869.07697154,0.0001,2]
[343705481,1732893040050,-14012.49771171,0.0001,2]
[343705488,1732893040120,-516.99780968,0.0001,2]
[343705490,1732893040131,-88428.0712236,0.0001,2]
[343705495,1732893040175,-9811.9,0.0001,2]
[343705497,1732893040186,-10297.95184178,0.0001,2]
[343705498,1732893040196,-7454.49500002,0.0001,2]
[343705500,1732893040208,-816.7161633,0.0001,2]
[343705503,1732893040219,-613.53541738,0.0001,2]
[343705516,1732893042493,-398741.47239039,0.0001,2]
[343705518,1732893042504,-396.14073893,0.0001,2]
[343705520,1732893042547,-2169.91256368,0.0001,2]
[343705521,1732893042558,-391.635,0.0001,2]
[343705522,1732893042569,-523.5381,0.0001,2]
[343705523,1732893042747,-3236.09137081,0.0001,2]
[343705524,1732893042764,-9108.80121048,0.0001,2]
[343705525,1732893042775,-19677.54385491,0.0001,2]
[343705526,1732893042811,-54050.37700316,0.0001,2]
[343705527,1732893042857,-9104.12321795,0.0001,2]
[343705528,1732893042868,-3017.33152519,0.0001,2]
[343705529,1732893042879,-12545.0402295,0.0001,2]
[343705530,1732893042890,-4996.33400983,0.0001,2]
[343705531,1732893042901,-6649.51123384,0.0001,2]
[343705532,1732893042912,-9649.63250996,0.0001,2]
[343705533,1732893042923,-5446.05180662,0.0001,2]
[343705534,1732893042965,-9489.22139185,0.0001,2]
[343705535,1732893042977,-8312.42573466,0.0001,2]
[343705536,1732893043010,-98218.6106856,0.0001,2]
[343705537,1732893043025,-100387.95000235,0.0001,2]
[343705692,1732893045973,-105340.47612686,0.0001,2]
[343705693,1732893045984,-3130.4490367,0.0001,2]
[343705694,1732893045995,-403.5637376,0.0001,2]
[343705695,1732893046007,-867.26204,0.0001,2]
[343705696,1732893046119,-61801.13499971,0.0001,2]
[343705697,1732893046147,-9468.00000001,0.0001,2]
[343705698,1732893046158,-9813.47375769,0.0001,2]
[343705699,1732893046169,-33464.98788707,0.0001,2]
[343705700,1732893046220,-27737.12634261,0.0001,2]
[343705734,1732893054998,160.55,7.956e-05,2]
[343705735,1732893055019,4.02,7.956e-05,2]
[343705736,1732893075338,218.13,0.00017,10]
[343705737,1732893135190,161.79,0.00016658,30]
[343705739,1732893208249,500.0,0.00025733,120]
[343705740,1732893215559,200.0,0.00025209,120]
[343705741,1732893454024,160.54880124,9.9e-06,2]
[343705742,1732893454047,150.0,9.9e-06,2]
[343705743,1732893454068,152.12677031,9.9e-06,2]
[343705744,1732893454096,73371.67530626,9.9e-06,2]
[343705745,1732893454120,489.02011111,9.9e-06,2]
[343705746,1732893454145,2667.27444768,9.9e-06,2]
[343705749,1732893603660,150.0,9.9e-06,2]
[343705750,1732893737379,161.79,0.00016658,30]
[343705751,1732893808551,500.0,0.00025827,120]
[343705752,1732893814767,200.0,0.00025393,120]
[343705786,1732894208340,152.12677031,6.968e-05,2]
[343705794,1732894231871,-279.918,8.178e-05,2]
[343705795,1732894231890,-422.24713677,8.219e-05,2]